bitfinex-derivatives/quotes_SOLF0:USTF0_20260312
["timestamp","ask_amount","ask_price","bid_price","bid_amount"]
[1773336218388,10.373,86.75,86.705,14.93140799]
[1773336218988,10.372,86.757,86.705,14.93140799]
[1773336219481,20.737,86.787,86.705,14.93140799]
[1773336219688,9.11416577,86.78,86.705,14.93140799]
[1773336220485,9.11416577,86.76,86.681,14.93327433]
[1773336221692,9.11416577,86.78,86.681,14.93327433]
[1773336221891,9.11416577,86.78,86.687,14.95384236]
[1773336222295,9.11416577,86.78,86.717,14.95384236]
[1773336222891,10.37,86.771,86.719,14.95384236]
[1773336223288,10.371,86.765,86.719,14.95384236]
[1773336223991,10.372,86.758,86.719,14.95384236]
[1773336224996,10.372,86.752,86.719,14.95384236]
[1773336227287,9.11416577,86.76,86.7,14.93893826]
[1773336228695,9.11416577,86.78,86.7,14.93893826]
[1773336228900,10.373,86.746,86.7,14.93893826]
[1773336229194,9.11416577,86.78,86.7,14.93893826]
[1773336229593,9.11416577,86.76,86.7,14.93893826]
[1773336232502,9.11416577,86.78,86.7,14.93893826]
[1773336232699,9.11416577,86.78,86.703,14.94887313]
[1773336234803,29.85316577,86.78,86.703,14.94887313]
[1773336235005,29.85316577,86.78,86.705,10.64345659]
[1773336235302,29.85316577,86.78,86.707,14.96030248]
[1773336236106,10.372,86.757,86.71,14.96030248]
[1773336237705,10.371,86.764,86.713,14.95838929]
[1773336237906,9.11416577,86.78,86.713,14.95838929]
[1773336239012,10.372,86.758,86.713,14.95838929]
[1773336239907,10.371,86.766,86.717,15.02765095]
[1773336240102,333.3988772,86.79,86.717,15.02765095]
[1773336240310,333.3988772,86.79,86.727,15.02765095]
[1773336240511,9.11416577,86.78,86.727,15.02765095]
[1773336240705,9.11416577,86.78,86.713,25.67110754]
[1773336241012,9.11416577,86.76,86.7,10.64345659]
[1773336241202,9.11416577,86.76,86.702,10.64345659]
[1773336241809,9.11416577,86.76,86.703,10.64345659]
[1773336242312,9.11416577,86.76,86.699,15.02732875]
[1773336243007,10.374,86.74,86.699,15.02732875]
[1773336243408,9.11416577,86.76,86.7,25.70962169]
[1773336243602,9.11416577,86.76,86.701,15.0661651]
[1773336243801,9.11416577,86.76,86.689,10.64345659]
[1773336244007,9.11416577,86.76,86.69,15.0661651]
[1773336244205,10.373,86.747,86.695,15.0661651]
[1773336244403,36.32,86.758,86.696,15.0661651]
[1773336244608,36.32,86.758,86.672,525.83341601]
[1773336244609,36.32,86.758,86.688,10.64345659]
[1773336245014,9.11416577,86.74,86.687,10.64345659]
[1773336245308,9.11416577,86.74,86.688,10.64345659]
[1773336245715,10.376,86.725,86.684,10.64345659]
[1773336246103,9.11416577,86.74,86.684,10.64345659]
[1773336246313,10.377,86.712,86.684,10.64345659]
[1773336246511,10.377,86.712,86.679,15.04949658]
[1773336246512,10.377,86.712,86.679,25.69295317]
[1773336246811,9.11416577,86.72,86.671,0.00045659]
[1773336247018,9.11416577,86.72,86.663,15.04949658]
[1773336247917,14.2225602,86.756,86.628,15.07763694]
[1773336247918,9.11416577,86.7,86.628,15.07763694]
[1773336248214,36.32,86.699,86.628,15.07763694]
[1773336248415,47.87145571,86.699,86.628,15.07763694]
[1773336248817,9.11416577,86.72,86.628,15.07763694]
[1773336249016,9.11416577,86.72,86.629,15.07903691]
[1773336249911,10.38,86.688,86.629,15.07903691]
[1773336250710,9.11416577,86.7,86.631,15.07903691]
[1773336251517,11.29040751,86.72,86.616,15.12411335]
[1773336251518,9.11416577,86.68,86.616,15.12411335]
[1773336252919,10.382,86.672,86.62,15.12588117]
[1773336253611,9.11416577,86.7,86.623,15.12588117]
[1773336254216,10.38,86.689,86.626,15.12588117]
[1773336254619,9.11416577,86.7,86.626,15.12588117]
[1773336254818,9.11416577,86.7,86.629,15.12588117]
[1773336255913,10.38,86.689,86.631,10.387]
[1773336256120,10.38,86.689,86.632,15.1400978]
[1773336256621,10.381,86.682,86.632,15.1400978]
[1773336257515,10.381,86.682,86.634,10.386]
[1773336257716,10.38,86.692,86.635,15.14000379]
[1773336258016,9.11416577,86.7,86.635,15.14000379]
[1773336259022,10.38,86.685,86.635,15.14000379]
[1773336259709,10.379,86.694,86.637,15.11904371]
[1773336259912,20.40457328,86.72,86.637,15.11904371]
[1773336260418,20.40457328,86.72,86.62,9.11416577]
[1773336260419,10.378,86.706,86.65,15.11904371]
[1773336260817,9.11416577,86.7,86.634,15.11904371]
[1773336261118,9.11416577,86.66,86.57,9.11416577]
[1773336261821,9.11416577,86.68,86.59,9.11416577]
[1773336262320,10.382,86.671,86.617,10.389]
[1773336262922,10.382,86.671,86.618,7.51918101]
[1773336263323,9.11416577,86.68,86.618,7.51918101]
[1773336264920,10.383,86.665,86.618,7.51918101]
[1773336265320,36.34,86.699,86.618,7.51918101]
[1773336265528,10.381,86.679,86.626,7.50296517]
[1773336265819,36.34,86.699,86.626,7.50296517]
[1773336266926,10.382,86.673,86.628,10.387]
[1773336267118,36.34,86.699,86.628,7.50662167]
[1773336267324,9.11416577,86.68,86.628,7.50662167]
[1773336267530,10.383,86.666,86.628,7.50662167]
[1773336267725,9.11416577,86.7,86.628,7.50662167]
[1773336268126,10.381,86.679,86.637,7.50662167]
[1773336268331,9.11416577,86.7,86.626,7.50662167]
[1773336269124,9.11416577,86.7,86.629,7.50532015]
[1773336270530,10.381,86.679,86.631,7.50532015]
[1773336270725,9.11416577,86.7,86.631,7.50532015]
[1773336271431,10.38,86.686,86.633,10.387]
[1773336271631,10.38,86.686,86.634,7.51081098]
[1773336271830,9.11416577,86.7,86.634,7.51081098]
[1773336272931,10.381,86.68,86.636,7.51081098]
[1773336273332,9.11416577,86.7,86.636,7.51081098]
[1773336273625,9.11416577,86.7,86.645,7.52057694]
[1773336274633,10.38,86.688,86.647,10.385]
[1773336274931,10.38,86.688,86.645,7.52057694]
[1773336275828,10.381,86.682,86.645,7.52057694]
[1773336276024,9.11416577,86.7,86.645,7.52057694]
[1773336276423,9.11416577,86.7,86.61,9.11416577]
[1773336276424,10.379,86.697,86.647,7.52023988]
[1773336277230,10.38,86.691,86.647,7.52023988]
[1773336277432,9.11416577,86.7,86.647,7.52023988]
[1773336278133,10.38,86.692,86.647,7.52023988]
[1773336278937,10.38,86.692,86.648,10.385]
[1773336279334,10.38,86.692,86.649,7.52675522]
[1773336279536,20.40457328,86.72,86.651,7.52675522]
[1773336280529,20.40457328,86.72,86.655,7.52675522]
[1773336280737,9.11416577,86.7,86.627,7.52675522]
[1773336281832,10.38,86.687,86.627,7.52675522]
[1773336282031,9.13051772,86.7,86.627,7.52675522]
[1773336282833,9.13051772,86.68,86.627,7.52675522]
[1773336284929,10.383,86.663,86.616,10.389]
[1773336285338,9.13051772,86.68,86.612,7.50327131]
[1773336285531,3.41063688,86.65,86.612,7.50327131]
[1773336286832,3.41063688,86.65,86.613,10.389]
[1773336287136,3.41063688,86.65,86.612,7.50327131]
[1773336287336,3.41063688,86.66,86.612,7.50327131]
[1773336288934,3.41063688,86.66,86.615,7.5034673]
[1773336289135,3.41063688,86.67,86.621,7.48271617]
[1773336290735,10.383,86.668,86.621,7.48271617]
[1773336291437,3.41063688,86.67,86.624,7.46891795]
[1773336291939,13.79263688,86.67,86.627,7.46891795]
[1773336294739,3.41063688,86.66,86.613,14.25199557]
[1773336294937,3.41063688,86.65,86.612,7.4687005]
[1773336295631,3.41063688,86.66,86.612,7.4687005]
[1773336295846,10.384,86.652,86.612,7.4687005]
[1773336296041,3.41063688,86.65,86.612,7.4687005]
[1773336296242,10.384,86.659,86.615,7.45586012]
[1773336297941,3.41063688,86.66,86.615,7.45586012]
[1773336298243,10.383,86.667,86.621,7.45673418]
[1773336299343,3.41063688,86.67,86.623,7.45457922]
[1773336299543,10.382,86.674,86.631,7.45457922]
[1773336300344,10.76725259,86.712,86.633,7.45457922]
[1773336300544,3.41063688,86.7,86.651,7.45457922]
[1773336301243,10.379,86.697,86.652,7.45491133]
[1773336301443,3.41063688,86.71,86.661,7.45491133]
[1773336302444,10.378,86.706,86.661,7.45491133]
[1773336306251,13.78963688,86.7,86.661,7.45491133]
[1773336309557,13.78963688,86.7,86.652,10.7590075]
[1773336310054,13.78963688,86.7,86.656,7.43650816]
[1773336310256,3.41063688,86.7,86.656,7.43650816]
[1773336310850,3.41063688,86.7,86.657,17.82050816]
[1773336311356,3.41063688,86.7,86.657,7.43650816]
[1773336312454,3.41063688,86.68,86.646,10.7590075]
[1773336312658,3.41063688,86.67,86.626,7.43648897]
[1773336313656,3.41063688,86.68,86.626,7.43648897]
[1773336313956,10.381,86.678,86.626,7.43648897]
[1773336314554,3.41063688,86.67,86.626,7.43648897]
[1773336315655,3.41063688,86.68,86.626,7.43648897]
[1773336316357,10.382,86.675,86.626,7.43648897]
[1773336317756,10.383,86.661,86.626,7.43648897]
[1773336317957,3.41063688,86.67,86.626,7.43648897]
[1773336318856,10.382,86.669,86.626,7.43648897]
[1773336319857,3.41063688,86.66,86.612,7.4305545]
[1773336320057,3.41063688,86.65,86.612,7.4305545]
[1773336321359,10.385,86.649,86.612,7.4305545]
[1773336322056,3.41063688,86.65,86.597,10.391]
[1773336322057,3.41063688,86.64,86.597,17.82110303]
[1773336322263,3.41063688,86.64,86.6,7.43010303]
[1773336323456,3.41063688,86.65,86.602,7.45672684]
[1773336323658,20.759,86.695,86.611,7.45672684]
[1773336323659,3.41063688,86.67,86.611,7.45672684]
[1773336323854,3.41063688,86.66,86.611,7.45672684]
[1773336324457,10.384,86.659,86.612,17.84572684]
[1773336324760,10.384,86.652,86.612,7.45672684]
[1773336324954,3.41063688,86.65,86.612,7.45672684]
[1773336325560,10.385,86.647,86.612,7.45672684]
[1773336325763,3.41063688,86.64,86.599,36.38]
[1773336326057,3.41063688,86.65,86.599,43.84105699]
[1773336326261,3.41063688,86.65,86.6,7.46105699]
[1773336326965,13.79563688,86.65,86.603,7.46105699]
[1773336327556,3.41063688,86.65,86.606,7.44944243]
[1773336328263,10.385,86.649,86.607,17.83944243]
[1773336329063,10.385,86.649,86.607,7.44944243]
[1773336329460,3.41063688,86.65,86.607,7.44944243]
[1773336330966,20.763,86.676,86.599,36.38]
[1773336331172,20.763,86.676,86.593,489.20775616]
[1773336331173,3.41063688,86.65,86.6,3.41063688]
[1773336331370,3.41063688,86.66,86.601,7.47721578]
[1773336331569,10.384,86.658,86.611,7.47721578]
[1773336331761,3.41063688,86.66,86.611,7.47721578]
[1773336331960,3.41063688,86.65,86.611,7.47721578]
[1773336332469,20.761,86.686,86.611,7.47721578]
[1773336332662,3.41063688,86.65,86.611,7.47721578]
[1773336332863,13.79663688,86.64,86.602,36.78]
[1773336333064,13.79663688,86.64,86.597,7.47721578]
[1773336333565,3.41063688,86.63,86.597,7.47721578]
[1773336333770,3.41063688,86.64,86.597,7.47721578]
[1773336334363,10.386,86.64,86.597,7.47721578]
[1773336334564,3.41063688,86.65,86.601,7.46994153]
[1773336334765,3.41063688,86.66,86.61,3.41063688]
[1773336334966,3.41063688,86.66,86.611,7.46994153]
[1773336336772,10.384,86.653,86.611,7.46994153]
[1773336337866,3.41063688,86.65,86.611,7.46994153]
[1773336339062,10.385,86.647,86.611,7.46994153]
[1773336339669,3.41063688,86.64,86.6,37.0]
[1773336339870,3.41063688,86.64,86.601,7.4642466]
[1773336340471,10.385,86.647,86.603,7.4642466]
[1773336341472,10.384,86.654,86.605,7.46643148]
[1773336341672,10.71427823,86.698,86.593,489.20775616]
[1773336341673,3.41056755,86.67,86.621,7.46643148]
[1773336342970,10.383,86.664,86.621,7.46643148]
[1773336343566,10.382,86.671,86.623,7.46642243]
[1773336344974,10.382,86.671,86.626,7.46642243]
[1773336345875,10.382,86.671,86.62,3.41056755]
[1773336345876,10.382,86.671,86.628,7.45367373]
[1773336346780,10.383,86.665,86.628,7.45367373]
[1773336347076,3.41056755,86.67,86.628,7.45367373]
[1773336348176,3.41056755,86.66,86.609,7.49053405]
[1773336348377,3.41056755,86.66,86.611,7.49053405]
[1773336348577,10.383,86.659,86.618,7.49053405]
[1773336349279,10.384,86.653,86.618,7.49053405]
[1773336350580,3.41056755,86.64,86.601,7.49074399]
[1773336351471,3.41056755,86.64,86.587,7.48828536]
[1773336351679,3.41056755,86.63,86.587,7.48828536]
[1773336352478,3.41056755,86.64,86.587,7.48828536]
[1773336354887,3.41056755,86.66,86.611,7.50137639]
[1773336356987,10.385,86.651,86.611,7.50137639]
[1773336358882,3.41056755,86.66,86.611,7.50137639]
[1773336359883,3.41056755,86.68,86.631,7.53772221]
[1773336360585,10.381,86.681,86.631,7.53772221]
[1773336360785,3.41056755,86.68,86.631,7.53772221]
[1773336361889,10.381,86.679,86.631,7.53772221]
[1773336363083,10.38,86.687,86.64,3.41056755]
[1773336363291,3.41056755,86.7,86.651,7.55517058]
[1773336363883,36.36,86.713,86.651,7.55517058]
[1773336363884,21.31282054,86.736,86.651,7.55517058]
[1773336364186,10.5514458,86.768,86.664,34.68]
[1773336364484,10.5514458,86.768,86.72,3.41056755]
[1773336365082,3.41056755,86.78,86.73,3.41056755]
[1773336365290,10.54283053,86.784,86.73,3.41056755]
[1773336365687,10.54283053,86.784,86.712,10.377]
[1773336366888,10.54283053,86.781,86.712,10.377]
[1773336367986,10.55121245,86.779,86.701,10.378]
[1773336368388,10.55121245,86.755,86.679,36.72]
[1773336369187,10.54108441,86.753,86.688,10.38]
[1773336370293,10.54108441,86.751,86.688,10.38]
[1773336370891,10.54108441,86.746,86.679,36.72]
[1773336371589,10.53682007,86.739,86.679,36.72]
[1773336371988,10.53682007,86.739,86.68,10.381]
[1773336372184,10.373,86.75,86.679,36.72]
[1773336372591,10.53682007,86.756,86.679,36.72]
[1773336373889,10.53682007,86.756,86.698,10.379]
[1773336375896,10.53682007,86.756,86.689,10.38]
[1773336376293,10.53682007,86.756,86.69,9.10848663]
[1773336376497,10.53682007,86.756,86.695,10.379]
[1773336377801,10.55676555,86.755,86.695,10.379]
[1773336378995,10.55676555,86.753,86.695,10.379]
[1773336379795,10.55193983,86.748,86.695,10.379]
[1773336382703,10.5536707,86.745,86.674,10.64855195]
[1773336382906,10.5536707,86.745,86.662,10.64855195]
[1773336383096,10.5536707,86.745,86.663,10.64855195]
[1773336383296,10.56223882,86.742,86.664,10.64855195]
[1773336383492,10.56223882,86.742,86.673,10.64855195]
[1773336384604,10.56223882,86.742,86.695,10.379]
[1773336384802,10.373,86.751,86.695,10.379]
[1773336384993,10.56223882,86.75,86.695,10.379]
[1773336385594,10.373,86.749,86.695,10.379]
[1773336385902,10.54807669,86.739,86.672,10.64855195]
[1773336386103,10.54807669,86.739,86.68,3.40284056]
[1773336386602,10.54807669,86.739,86.672,10.64855195]
[1773336386603,10.54807669,86.739,86.69,3.40284056]
[1773336387101,3.40284056,86.74,86.701,10.378]
[1773336387301,10.372,86.756,86.71,3.40284056]
[1773336387504,3.40284056,86.76,86.71,3.40284056]
[1773336388002,10.371,86.764,86.72,3.40284056]
[1773336388904,10.371,86.764,86.711,10.377]
[1773336389307,2.0064807,86.801,86.672,48.96379405]
[1773336389308,10.55369901,86.757,86.703,10.378]
[1773336389604,10.55369901,86.757,86.7,3.40284056]
[1773336389804,10.55369901,86.757,86.69,10.64855195]
[1773336389805,10.55369901,86.757,86.71,3.40284056]
[1773336390501,10.55369901,86.757,86.71,13.77984056]
[1773336390707,10.55369901,86.757,86.71,10.377]
[1773336390898,3.40284056,86.75,86.685,10.64855195]
[1773336391101,10.57656499,86.749,86.7,3.40284056]
[1773336391301,10.57656499,86.749,86.69,3.40284056]
[1773336391502,10.57656499,86.749,86.7,3.40284056]
[1773336392108,20.94956499,86.749,86.7,3.40284056]
[1773336393308,10.57656499,86.749,86.7,3.40284056]
[1773336394401,10.57656499,86.749,86.681,10.64855195]
[1773336394610,3.40284056,86.74,86.68,3.40284056]
[1773336395006,10.58920781,86.709,86.662,10.64855195]
[1773336395202,10.58920781,86.709,86.627,20.775]
[1773336395203,10.58920781,86.709,86.65,3.40284056]
[1773336395401,10.58920781,86.704,86.65,3.40284056]
[1773336396108,10.58920781,86.704,86.66,10.383]
[1773336396310,10.58920781,86.704,86.652,10.64855195]
[1773336396510,10.58920781,86.704,86.651,10.64855195]
[1773336397306,10.58920781,86.704,86.654,10.64855195]
[1773336397513,10.58920781,86.704,86.66,3.40284056]
[1773336398317,13.99532778,86.72,86.66,3.40284056]
[1773336398510,13.99532778,86.72,86.666,10.64855195]
[1773336399214,13.99532778,86.72,86.67,10.64855195]
[1773336399913,13.99532778,86.72,86.675,10.382]
[1773336400312,13.99532778,86.72,86.672,10.64855195]
[1773336400515,3.40284056,86.71,86.672,10.64855195]
[1773336401106,10.54455641,86.719,86.675,10.64855195]
[1773336401315,10.54455641,86.719,86.675,21.02955195]
[1773336401316,20.92055641,86.719,86.675,21.02955195]
[1773336401513,10.54455641,86.719,86.676,10.64855195]
[1773336402011,10.54455641,86.719,86.677,10.381]
[1773336402213,3.40284056,86.73,86.682,10.64855195]
[1773336402416,13.95667307,86.73,86.682,10.64855195]
[1773336403117,3.40284056,86.71,86.682,10.64855195]
[1773336403618,10.55383251,86.719,86.682,10.64855195]
[1773336404016,10.377,86.716,86.682,10.64855195]
[1773336404317,10.377,86.716,86.686,10.64855195]
[1773336404918,10.377,86.716,86.685,10.64855195]
[1773336405220,10.377,86.716,86.686,10.64855195]
[1773336405419,10.377,86.716,86.673,10.382]
[1773336405420,10.377,86.716,86.685,10.64855195]
[1773336405616,10.377,86.716,86.686,10.64855195]
[1773336406221,10.377,86.716,86.689,10.64855195]
[1773336407212,10.377,86.716,86.692,10.64855195]
[1773336408215,10.377,86.716,86.695,10.64855195]
[1773336408826,10.377,86.716,86.69,10.64855195]
[1773336409321,10.377,86.716,86.689,10.64855195]
[1773336409517,10.55370711,86.709,86.673,14.28379405]
[1773336409717,10.55370711,86.709,86.666,10.383]
[1773336410515,10.55370711,86.709,86.672,10.382]
[1773336411226,3.40529313,86.72,86.672,10.382]
[1773336411621,3.40529313,86.72,86.678,10.381]
[1773336413022,10.376,86.723,86.678,10.381]
[1773336415625,10.376,86.723,86.671,36.32]
[1773336415626,10.57766076,86.716,86.671,36.32]
[1773336416529,10.57766076,86.716,86.68,10.381]
[1773336416730,10.376,86.724,86.671,36.32]
[1773336417228,10.57766076,86.732,86.69,3.40529313]
[1773336418030,10.57766076,86.732,86.697,10.379]
[1773336419526,10.57766076,86.732,86.69,13.78529313]
[1773336419733,10.57766076,86.732,86.69,10.38]
[1773336419933,10.57766076,86.732,86.68,3.40529313]
[1773336420134,10.373,86.747,86.69,3.40529313]
[1773336420730,3.40529313,86.75,86.702,10.378]
[1773336421330,20.95020305,86.749,86.702,10.378]
[1773336424143,20.95020305,86.749,86.708,10.378]
[1773336426042,10.5459584,86.748,86.708,10.378]
[1773336426439,10.5459584,86.769,86.71,3.40529313]
[1773336426642,10.5459584,86.769,86.72,3.40529313]
[1773336426838,10.5459584,86.769,86.73,3.40529313]
[1773336427043,3.40529313,86.78,86.73,3.40529313]
[1773336427244,3.40529313,86.78,86.738,10.374]
[1773336427438,10.52703401,86.783,86.73,3.40529313]
[1773336427946,10.52703401,86.777,86.723,14.28379405]
[1773336428147,10.52703401,86.777,86.725,14.28379405]
[1773336428338,10.52703401,86.777,86.73,3.40529313]
[1773336428942,10.52703401,86.777,86.735,10.374]
[1773336429836,10.50463864,86.769,86.727,10.375]
[1773336430044,3.40529313,86.76,86.72,36.32]
[1773336430244,10.50463864,86.768,86.72,36.32]
[1773336430543,3.40529313,86.76,86.72,36.32]
[1773336431142,3.40529313,86.76,86.722,10.376]
[1773336431447,10.50463864,86.768,86.722,10.376]
[1773336435552,10.51008875,86.781,86.73,3.40529313]
[1773336435754,3.40529313,86.79,86.74,3.40529313]
[1773336436452,10.368,86.788,86.741,10.374]
[1773336436652,359.60929012,86.831,86.741,10.374]
[1773336436653,3.40529313,86.78,86.741,10.374]
[1773336438643,20.87933579,86.786,86.741,10.374]
[1773336440152,10.50940944,86.785,86.741,10.374]
[1773336442753,10.369,86.784,86.741,10.374]
[1773336442950,10.50682616,86.783,86.741,10.374]
[1773336443857,10.50275288,86.779,86.741,10.374]
[1773336445562,10.50275288,86.779,86.702,34.59]
[1773336445563,3.40529313,86.75,86.702,5.75012315]
[1773336445757,3.40529313,86.74,86.702,5.75012315]
[1773336446959,10.373,86.749,86.704,5.75012315]
[1773336447860,10.373,86.749,86.71,5.76477238]
[1773336449264,3.40529313,86.74,86.691,5.7807353]
[1773336449567,3.40529313,86.75,86.691,5.7807353]
[1773336449769,10.374,86.741,86.699,5.7807353]
[1773336449969,3.40529313,86.74,86.699,5.7807353]
[1773336450163,3.40529313,86.73,86.691,5.7807353]
[1773336450867,3.40529313,86.73,86.69,36.3]
[1773336450868,3.40529313,86.74,86.697,5.7807353]
[1773336452070,3.40529313,86.74,86.698,16.16209951]
[1773336452872,3.40529313,86.74,86.701,5.78309951]
[1773336453767,3.40529313,86.74,86.703,5.80453312]
[1773336453965,3.40529313,86.75,86.703,5.80453312]
[1773336454172,3.40529313,86.75,86.711,10.377]
[1773336455674,10.372,86.755,86.715,16.18380479]
[1773336455876,10.372,86.755,86.716,5.80680479]
[1773336456871,3.40529313,86.76,86.716,5.80680479]
[1773336457472,3.40529313,86.76,86.707,10.378]
[1773336457877,10.372,86.758,86.707,10.378]
[1773336458572,3.40529313,86.75,86.707,10.378]
[1773336459970,36.3,86.793,86.707,10.378]
[1773336460179,3.40529313,86.75,86.702,5.81017211]
[1773336461875,3.40529313,86.75,86.707,10.378]
[1773336462675,10.373,86.748,86.707,10.378]
[1773336463574,3.40273441,86.75,86.707,10.378]
[1773336463775,3.40273441,86.75,86.707,16.18774097]
[1773336463974,10.373,86.743,86.7,3.40273441]
[1773336465076,10.374,86.737,86.699,10.379]
[1773336465379,3.40273441,86.74,86.694,5.80974097]
[1773336465580,182.64165622,86.81,86.681,5.80769849]
[1773336465581,3.40273441,86.73,86.681,5.80769849]
[1773336466270,10.377,86.717,86.676,56.201]
[1773336466473,3.40273441,86.71,86.667,5.80769849]
[1773336467578,10.378,86.702,86.667,5.80769849]
[1773336468982,10.378,86.702,86.66,3.40273441]
[1773336469577,36.3,86.745,86.651,5.80019442]
[1773336469783,28.52487497,86.796,86.651,5.80019442]
[1773336469784,3.40273441,86.71,86.651,5.80019442]
[1773336470079,10.378,86.707,86.658,10.384]
[1773336470283,10.378,86.707,86.661,5.80019442]
[1773336471579,10.377,86.716,86.671,5.7827338]
[1773336472685,3.40273441,86.71,86.656,5.7827338]
[1773336473385,3.40273441,86.71,86.661,5.80027213]
[1773336474780,10.377,86.717,86.663,10.383]
[1773336474987,3.40273441,86.73,86.671,5.80027213]
[1773336475386,3.40273441,86.73,86.681,5.78136487]
[1773336475590,10.376,86.725,86.683,5.78136487]
[1773336476888,10.376,86.725,86.685,10.38]
[1773336477988,10.376,86.725,86.683,5.78136487]
[1773336479982,10.376,86.719,86.676,10.381]
[1773336480583,10.377,86.712,86.67,5.77362123]
[1773336480782,3.40273441,86.72,86.671,5.77362123]
[1773336480980,3.40273441,86.73,86.671,5.77362123]
[1773336481180,10.376,86.719,86.671,5.77362123]
[1773336481387,3.40273441,86.71,86.659,5.77301869]
[1773336481587,3.40273441,86.69,86.644,5.77301869]
[1773336482585,3.40273441,86.68,86.644,5.77301869]
[1773336482890,3.40273441,86.68,86.63,3.40273441]
[1773336482891,3.40273441,86.68,86.63,5.77301869]
[1773336483989,10.381,86.679,86.631,10.387]
[1773336484186,10.381,86.679,86.632,5.8051289]
[1773336485389,3.40273441,86.67,86.618,5.8082187]
[1773336485993,3.40273441,86.67,86.621,5.8082187]
[1773336486488,10.382,86.669,86.624,5.8082187]
[1773336488095,10.383,86.663,86.624,5.8082187]
[1773336488690,3.40273441,86.68,86.631,5.81217995]
[1773336489295,3.40273441,86.67,86.631,5.81217995]
[1773336489497,36.32,86.72,86.631,5.81217995]
[1773336489498,3.40273441,86.68,86.631,5.81217995]
[1773336491401,3.40273441,86.68,86.633,5.81502942]
[1773336491799,10.381,86.679,86.633,5.81502942]
[1773336491996,10.381,86.679,86.635,16.20102942]
[1773336492802,10.381,86.679,86.635,5.81502942]
[1773336493003,10.382,86.672,86.635,5.81502942]
[1773336494903,3.40273441,86.67,86.61,3.40273441]
[1773336495099,3.40273441,86.66,86.611,5.81417859]
[1773336495900,10.384,86.654,86.611,5.81417859]
[1773336496604,10.383,86.663,86.621,5.81417859]
[1773336497902,3.40273441,86.69,86.641,5.82221537]
[1773336500006,10.381,86.677,86.641,5.82221537]
[1773336503105,10.382,86.671,86.627,5.84967122]
[1773336503306,3.40273441,86.68,86.631,5.84408316]
[1773336504213,3.40273441,86.67,86.631,5.84408316]
[1773336504812,10.383,86.666,86.631,5.84408316]
[1773336506111,10.383,86.666,86.589,483.05160488]
[1773336506112,3.40273441,86.65,86.618,5.84272445]
[1773336506313,3.40273441,86.64,86.599,5.84272445]
[1773336506515,3.40273441,86.63,86.589,483.05160488]
[1773336506904,3.40273441,86.62,86.57,3.40273441]
[1773336507107,161.483,86.684,86.549,14.28379405]
[1773336507108,3.40273441,86.59,86.549,5.86999718]
[1773336507315,3.40273441,86.6,86.549,5.86999718]
[1773336507914,3.40273441,86.62,86.571,5.86999718]
[1773336508112,161.457,86.698,86.571,5.86999718]
[1773336508113,3.40273441,86.63,86.571,5.86999718]
[1773336508313,10.387,86.632,86.582,5.86999718]
[1773336508514,3.40273441,86.63,86.582,5.86999718]
[1773336508915,10.388,86.626,86.582,5.86999718]
[1773336509214,10.69723102,86.681,86.548,14.28379405]
[1773336509215,3.40273441,86.61,86.568,5.87270981]
[1773336510115,3.40273441,86.62,86.568,5.87270981]
[1773336510319,3.40273441,86.62,86.534,21.24699739]
[1773336510320,3.40273441,86.62,86.571,5.87270981]
[1773336510614,10.387,86.629,86.583,5.87270981]
[1773336517214,3.40273441,86.62,86.566,5.82702073]
[1773336518821,3.40273441,86.62,86.576,5.82702073]
[1773336519120,10.388,86.626,86.576,5.82702073]
[1773336520220,3.40273441,86.62,86.576,5.82702073]
[1773336520922,3.40273441,86.62,86.578,5.84843359]
[1773336521112,10.388,86.626,86.578,5.84843359]
[1773336521716,10.388,86.626,86.581,5.84877387]
[1773336523416,10.388,86.626,86.584,10.392]
[1773336523813,10.388,86.626,86.581,5.84877387]
[1773336525827,10.388,86.62,86.581,5.84877387]
[1773336527520,10.387,86.628,86.583,5.85225605]
[1773336527826,10.387,86.628,86.591,5.85225605]
[1773336529020,10.388,86.622,86.591,5.85225605]
[1773336529824,10.389,86.616,86.579,5.84925178]
[1773336532028,10.389,86.616,86.581,10.393]
[1773336532433,10.389,86.616,86.581,16.24580179]
[1773336533136,10.389,86.616,86.582,5.84922728]
[1773336533334,3.41259565,86.64,86.584,5.84922728]